Cogmind - Beta 15 @@@ ROGUE MODE // 2025.05.09 @ 19:37:52 // Winter2019/RPGLIKE Player: moonlol Result: Destroyed by VK-TW8(R) with Subdweller Shrapnel Launcher Performance ------------- Evolutions (0) 0 Regions Visited (2) 400 Robots Destroyed (19) 95 Value Destroyed (485) 485 Prototype IDs (1) 20 Alien Tech Used (0) 0 Bonus (0) 0 TOTAL SCORE: 1000 Bonus ------- None Cogmind --------- Core Integrity 0/600 Matter 300/300 Energy 280/280 System Corruption 0% Temperature Cool (0) Movement Walking (120) Location -10/Subcaves Parts ------- > --- POWER (1) -------- Heavy Ion Engine > --- PROPULSION (2) --- Aluminum Leg Aluminum Leg > --- UTILITY (2) ------ Improved Heat Sink Targeting Computer > --- WEAPON (2) ------- Particle Gun Particle Gun > --- INVENTORY (3) ---- Improved Terrain Scanner Particle Gun Peak State ------------ > --- POWER ------------ Heavy Ion Engine > --- PROPULSION ------- Aluminum Leg Aluminum Leg > --- UTILITY ---------- Improved Heat Sink Targeting Computer > --- WEAPON ----------- Particle Gun Particle Gun > --- INVENTORY -------- Protomatter Improved Terrain Scanner Seismic Detector [Rating: 13] Favorites ----------- Power Heavy Ion Engine Engine Heavy Ion Engine Propulsion Aluminum Leg Leg Aluminum Leg Utility Targeting Computer Device Improved Heat Sink Processor Targeting Computer Weapon Particle Gun Energy Gun Particle Gun Ballistic Gun Light Assault Rifle Build | -11 -10 -10 ------- Run | Yrd Mat Sub Slots Evolved 3 | 3 . . Power . | . . . Propulsion 1 | 1 . . Utility 1 | 1 . . Weapon 1 | 1 . . Parts Attached 14 | 7 7 . Power 3 | 1 2 . Engine 3 | 1 2 . Core . | . . . Reactor . | . . . Propulsion 2 | 2 . . Treads . | . . . Leg 2 | 2 . . Wheel . | . . . Hover . | . . . Flight . | . . . Utility 4 | 2 2 . Device 3 | 2 1 . Storage . | . . . Processor 1 | . 1 . Hackware . | . . . Protection . | . . . Artifact . | . . . Weapon 5 | 2 3 . Energy Gun 3 | 1 2 . Energy Cannon . | . . . Ballistic Gun 2 | 1 1 . Ballistic Cannon . | . . . Launcher . | . . . Special Weapon . | . . . Impact Weapon . | . . . Slashing Weapon . | . . . Piercing Weapon . | . . . Special Melee Weapon . | . . . Unidentified Prototypes 1 | . 1 . Parts Lost . | . . . Power . | . . . Propulsion . | . . . Utility . | . . . Weapon . | . . . Highest Loss Streak . | . . . To Critical Strikes . | . . . Average Backups 2 | 1 2 2 Power . | . . . Propulsion . | . . . Utility 1 | . 1 1 Weapon . | . . 1 Tool/Special . | . . . Unused Backups 3 | . 2 1 Power 1 | . 1 . Propulsion 1 | . 1 . Utility . | . . . Weapon 1 | . . 1 Tool/Special . | . . . Average Slot Usage (%) 100 | . 100 100 Engine 14 | . 14 14 Leg 28 | . 28 28 Device 14 | . 14 14 Processor 13 | . 13 14 Energy Gun 21 | . 21 28 Ballistic Gun 6 | . 6 . Peak Build Rating 13 | 9 13 13 Average Rating 10 | 4 11 13 On Entrance 7 | . 9 13 Naked Turns . | . . . Heaviest Build 15 | 7 15 15 Greatest Support 20 | 20 20 20 Greatest Overweight (x) . | . . . Average Overweight (x) . | . . . Largest Inventory Capacity 3 | 3 3 3 Average Capacity 2 | 2 3 3 Most Carried 3 | 3 3 2 Average Carried 2 | 1 2 2 Final Capacity 3 | 3 3 3 Final Carried 3 | 3 2 2 Class Distribution -------------------- 100% | Mutant Dominant Class ---------------- Mutant | -10/Materials Mutant | -10/Subcaves Resources | -11 -10 -10 ----------- Run | Yrd Mat Sub Matter Collected 389 | 256 133 . Remotely . | . . . Salvage Created 611 | 70 325 216 Parts 48 | 8 25 15 Haulers Intercepted . | . . . Recyclers Shooed 2 | 1 1 . Parts Field Recycled . | . . . Retrieved Matter . | . . . Parts Self-Destructed 4 | . . 4 Prevented . | . . . Kills | -11 -10 -10 ------- Run | Yrd Mat Sub Combat Hostiles Destroyed 13 | . 9 4 Guns 13 | . 9 4 Classes Destroyed 8 | 2 4 2 Builder 1 | . 1 . Tunneler 1 | 1 . . Recycler 1 | 1 . . Watcher 3 | . 3 . Swarmer 3 | . 3 . Grunt 7 | . 6 1 Sentry 1 | . . 1 Subdweller 2 | . . 2 Best Kill Streak 3 | 2 3 2 Combat Bots Only 3 | . 3 2 Max Kills in Single Turn 2 | 1 2 1 Gunslinging 1 | . 1 . Exploded . | . . . Melee . | . . . Uniques/NPCs Destroyed . | . . . Combat | -11 -10 -10 -------- Run | Yrd Mat Sub Hostile Shots Fired 87 | . 47 40 Missed 27 | . 15 12 Hits 60 | . 32 28 Projectile 60 | . 32 28 AOE 5 | . . 5 Critical Strikes 1 | . 1 . Damage Taken 1064 | . 464 600 Core 873 | . 381 492 Absorbed by Shields . | . . . Redirected to Core 657 | . 275 382 Core Remaining (%) 100 | 100 . . Volleys Fired 67 | 7 38 22 Largest 2 | 2 2 2 Hottest 130 | 60 130 130 Shots Fired 131 | 13 74 44 Gun 131 | 13 74 44 Cannon . | . . . Launcher . | . . . Special . | . . . Kinetic 35 | 7 28 . Thermal 96 | 6 46 44 Explosive . | . . . Electromagnetic . | . . . Robot Hit Streak 21 | 3 12 21 Robot Miss Streak 3 | 1 3 3 Penetration Max . | . . . Secondary Targets 3 | . 2 1 Max Gunslinging Chain 1 | . 1 1 Shots Hit Robots 89 | 8 47 34 Core Hits 32 | 4 22 6 Critical Kills . | . . . Critical Parts Destroyed . | . . . Critical Strikes 2 | . . 2 Burn 2 | . . 2 Melee Attacks . | . . . Impact . | . . . Slashing . | . . . Piercing . | . . . Sneak Attacks . | . . . Combat Hostiles . | . . . Follow-up Attacks . | . . . Damage Inflicted 1122 | 74 545 503 Guns 1110 | 74 533 503 Cannons . | . . . Explosions . | . . . Melee . | . . . Ramming 12 | . 12 . Kinetic 222 | 29 193 . Thermal 888 | 45 340 503 Explosive . | . . . Electromagnetic . | . . . Impact . | . . . Slashing . | . . . Piercing . | . . . Highest Corruption . | . . . Average Corruption . | . . . Corruption Purged . | . . . Corruption Blocked . | . . . Overload Shots . | . . . Overflow Damage . | . . . Projectiles . | . . . Explosions . | . . . Melee . | . . . Knockbacks 1 | . 1 . Impact 1 | . 1 . Kinetic . | . . . Secondary . | . . . Self-Inflicted Damage . | . . . Shots . | . . . Rammed . | . . . Targets Rammed 1 | . 1 . Kicked 1 | . 1 . Crushed . | . . . Highest Temperature 234 | 40 234 . Average Temperature 64 | 16 71 . Received Heat Transfer 330 | . 240 90 Siege Activations . | . . . Martial Activations . | . . . Shielding Activations . | . . . Robots Disrupted . | . . . Combat Hostiles . | . . . Robots Corrupted . | . . . Combat Hostiles . | . . . Parts Fried . | . . . Impact Corruptions . | . . . Robots Melted . | . . . Combat Hostiles . | . . . Parts Melted 3 | . 2 1 Heat Transferred 2252 | 100 783 1369 Parts Sabotaged . | . . . Parts Stolen . | . . . Parts Stripped . | . . . Power Chain Reactions . | . . . Alert | -11 -10 -10 ------- Run | Yrd Mat Sub Maximum Alert Level . | . . . Low Security (%) 100 | 100 100 . Level 1 . | . . . Level 2 . | . . . Level 3 . | . . . Level 4 . | . . . Level 5 . | . . . High Security . | . . . Max Security . | . . . Peak Influence 101 | 5 101 . Initial . | . . . Average 19 | 1 20 . Influence Increases 351 | 10 301 40 Destroy 0b10 Robot/C 220 | . 180 40 Destroy 0b10 Robot/NC 30 | 10 20 . Destroy Leader 46 | . 46 . Successful Hack 24 | . 24 . Destroy Structure 1 | . 1 . Lose Combat Pursuer 30 | . 30 . Influence Decreases 351 | 10 301 40 Time Decay 312 | 10 262 40 Purge Threat 39 | . 39 . Squads Dispatched 2 | . 2 . Investigation 2 | . 2 . Extermination . | . . . Reinforcement . | . . . Assault . | . . . Garrison . | . . . Intercept . | . . . Searches Triggered . | . . . Construction Impeded . | . . . Haulers Reinforced . | . . . Active Scanning Responses . | . . . Cargo Convoy Interrupts . | . . . Stealth | -11 -10 -10 --------- Run | Yrd Mat Sub Distress Signals . | . . . Communications Jammed . | . . . Distress Signals . | . . . Times Spotted 25 | . 20 5 Peak Tracking Total 3 | . 3 2 Tactical Retreats 2 | . 2 . Traps | -11 -10 -10 ------- Run | Yrd Mat Sub Traps Triggered 4 | . 4 . Indirectly . | . . . Trap Hack Attempts . | . . . Triggered . | . . . Disarmed 3 | . 3 . Reprogrammed . | . . . Reused . | . . . Traps Extracted . | . . . Installed . | . . . Triggered . | . . . Machines | -11 -10 -10 ---------- Run | Yrd Mat Sub Machines Disabled . | . . . Max in Single Turn . | . . . Machines Repaired . | . . . Machines Dismantled . | . . . Machines Sabotaged . | . . . Overloaded Fab Kills . | . . . Hacking | -11 -10 -10 --------- Run | Yrd Mat Sub Machines Accessed 7 | . 7 . Terminals 7 | . 7 . Fabricators . | . . . Repair Stations . | . . . Recycling Units . | . . . Scanalyzers . | . . . Garrison Access . | . . . Total Hacks 20 | . 20 . Successful 12 | . 12 . Failed 8 | . 8 . Catastrophic 2 | . 2 . Database Lockouts . | . . . Manual 20 | . 20 . Terminals 20 | . 20 . Fabricators . | . . . Repair Stations . | . . . Recycling Units . | . . . Scanalyzers . | . . . Garrison Access . | . . . Terminal Hacks 3 | . 3 . Terminal Index 1 | . 1 . Unreport Threat 1 | . 1 . Disarm Traps 1 | . 1 . Fabricator Hacks . | . . . Repair Station Hacks . | . . . Recycling Unit Hacks . | . . . Scanalyzer . | . . . Garrison Access Hacks . | . . . Unauthorized Hacks 9 | . 9 . Terminals 9 | . 9 . Botnet 2 | . 2 . Operators 1 | . 1 . Skim 6 | . 6 . Fabricators . | . . . Repair Stations . | . . . Recycling Units . | . . . Scanalyzers . | . . . Garrison Access . | . . . Data Cores Recovered . | . . . Used . | . . . Hacking Detections 5 | . 5 . Full Trace Events 1 | . 1 . Feedback Events . | . . . Feedback Blocked . | . . . Robot Schematics Acquired . | . . . Robots Built . | . . . Authchips . | . . . Time . | . . . Total Robot Build Rating . | . . . Part Schematics Acquired . | . . . Parts Built . | . . . Authchips . | . . . Time . | . . . Total Part Build Rating . | . . . Parts Repaired . | . . . Time . | . . . Parts Recycled . | . . . Recycled Matter . | . . . Retrieved Matter . | . . . Retrieved Components . | . . . Parts Scanalyzed . | . . . Part Schematics Acquired . | . . . Parts Damaged . | . . . Bothacking | -11 -10 -10 ------------ Run | Yrd Mat Sub Used RIF Installer . | . . . Robots Hacked . | . . . Non-combat . | . . . Combat . | . . . Robot Hacks Applied . | . . . Relay Couplers Released . | . . . Fabnet Peak Effective % . | . . . Robots Rewired . | . . . Allies Hacked . | . . . Hacks Repelled . | . . . Allies | -11 -10 -10 -------- Run | Yrd Mat Sub Total Allies . | . . . Largest Group . | . . . Highest-Rated Group . | . . . Highest-Rated Ally . | . . . Total Orders . | . . . Ally Attacks . | . . . Total Damage . | . . . Kills . | . . . Allies Corrupted . | . . . Allies Melted . | . . . Intel | -11 -10 -10 ------- Run | Yrd Mat Sub Active Infowar (turns) 309 | 16 293 . Terrain 302 | 9 293 . Seismic 79 | 16 63 . Robot Analysis Total . | . . . Derelict Logs Recovered . | . . . Drone Launches . | . . . Drone Recoveries . | . . . Exploration | -11 -10 -10 ------------- Run | Yrd Mat Sub Turns Passed 1575 | 107 1294 174 Spaces Moved 950 | 67 798 85 Core 10 | 10 . . Treads . | . . . Legs 940 | 57 798 85 Wheels . | . . . Hover . | . . . Flight . | . . . Fastest Speed 50 | 50 120 120 Average Speed 119 | 109 120 120 Slowest Speed 120 | 120 120 120 Overloaded Moves . | . . . Propulsion Burnouts . | . . . Robots Hopped . | . . . Potential Cave-ins . | . . . Cave-ins Triggered . | . . . Exploration Rate (%) 37 | 5 96 10 Regions Visited 2 Branch Regions 1 Pre-discovered Areas 1 | . 1 . Known Exits Taken . | . . . Unknown Exits Taken 2 | 1 1 . Scrap Searched . | . . . Spaces Dug . | . . . Terrain Destroyed . | . . . Melee . | . . . Projectile . | . . . AOE . | . . . Terrain Rammed . | . . . Walls Destroyed . | . . . Machines Disabled . | . . . Actions | -11 -10 -10 --------- Run | Yrd Mat Sub Total 1264 | 85 1066 113 Wait 205 | 2 197 6 Move 948 | 66 797 85 Hop . | . . . Pick Up 8 | 3 5 . Fast Attach 7 | 7 . . Attach . | . . . Detach . | . . . Swap 7 | . 7 . Drop 8 | . 8 . Fire 67 | 7 38 22 Melee . | . . . Ram . | . . . Kick 1 | . 1 . Crush . | . . . Escape Stasis . | . . . Rewire . | . . . Trap . | . . . Miscellaneous 13 | . 13 . Route ------- -11/Scrapyard -10/Materials (discovered 5 exits: [*Mat x3] / [*Min] / [*Sub]) -10/Subcaves (discovered 3 exits: [*Mat x2] / Rec) History --------- Turn | Location | Event 8 | -11/Scrapyard | Discovered new exit (range 16) 21 | -11/Scrapyard | Upgraded with Utility slot (x1) 21 | -11/Scrapyard | Upgraded with Weapon slot (x1) 35 | -11/Scrapyard | Upgraded with Propulsion slot (x1) 108 | -11/Scrapyard | Entered Materials 240 | -10/Materials | Discovered new exit (range 15) 307 | -10/Materials | Build established: Mutant 461 | -10/Materials | Discovered new exit (range 8) 751 | -10/Materials | Learned location of 2 exits from Mines 793 | -10/Materials | Learned Storage garrison access intel 823 | -10/Materials | Learned location of 1 exit from Recycling 842 | -10/Materials | Loaded intel: 8 terminal locations 868 | -10/Materials | Learned 4 Subcaves zone layouts 923 | -10/Materials | Learned 4 Recycling zone layouts 1102 | -10/Materials | Discovered new exit (range 8) 1379 | -10/Materials | Discovered new exit (range 13) 1380 | -10/Materials | Discovered new exit (range 5) 1402 | -10/Materials | Entered Subcaves 1403 | -10/Subcaves | Identified exit to Recycling 1404 | -10/Subcaves | Reached level 2 1457 | -10/Subcaves | Discovered new exit (range 6) 1477 | -10/Subcaves | Discovered new exit (range 8) 1520 | -10/Subcaves | Core integrity fell below 50% 1541 | -10/Subcaves | Disturbed a concealed Subdweller 1573 | -10/Subcaves | Core integrity fell below 20% 1576 | -10/Subcaves | Destroyed by VK-TW8(R) with Subdweller Shrapnel Launcher Last Messages --------------- 01436_ Switching to secondary target: G-34 Mercenary. 01439_ Subatomizers dissect the Heat Sink. 01440_ Heat Sink fries itself beyond repair. 01442_ Destroyed Aluminum Leg. 01444_ Hvy. Assault Rifle fries itself beyond repair. 01445_ G-34 Mercenary destroyed. 01449_ Heat Sink fries itself beyond repair. 01450_ Subatomizers dissect the Ion Engine. 01457_ Ion Engine fries itself beyond repair. 01457_ EXIT=FOUND 01525_ Disposable Heat Sink melted. 01525_ 07-IPS(R) destroyed. 01533_ VK-TW8(R) suffers critical hit (Burn). 01541_ FV-XTV(R) angrily emerges from the Twisted Machinery. 01542_ VK-TW8(R) affixes Scrap Shield Fragment to Scrap Shield. 01546_ Subatomizers dissect the Sub. Optics. 01548_ VK-TW8(R) suffers critical hit (Burn). 01553_ VK-TW8(R) affixes Scrap Shield Fragment to Scrap Shield. 01570_ FV-XTV(R) destroyed. 01571_ Subatomizers dissect the Sub. Laser, destroying it. Map ----- +----------------------------------------------------+ | | | | | | | ?????????????????????????????????????????????????? | | ?????????????????????????????????????????????????? | | ?????????????????????????????????????????????????? | | ?????????????????????????????????????????????????? | | ?????????????????????????????????????????????????? | | ?????????????????????????????????????????????????? | | ?????????????????????????????????????????????????? | | ?????????????????????????????????????????????????? | | ?????????????????????????????????????????????????? | | ?????????????????????????????????????????????????? | | ?????????????????????????????????????????????????? | | ?????????????????????????????????????????????????? | | ?????????????????????????????????????????????????? | | ?????????????????????????????????????????????????? | | ?????????????????????????????????????????????????? | | ?????????????????????????????????????????????????? | | ???????????????????##########????????????????????? | | ?????????????????###; # ###??????????????????? | | ?????????????????#;; #??????????????????? | | ????????????????##; ;#??????????????????? | | ????????????????#; #??????????????????? | | ????????????????# ##?????????????????? | | ????????????????#; @ #?????????????????? | | ????????????#####*== % ??????????? | | ????????????# &%%%R % ????????? | | ????????????# ##!& * ;# ## # ?????????? | | ????????????# ##$ ;# ; #??#???????????????? | | ????????????# #<<$$ ## ####??????????????????? | | ????????????# #<$$<## ###?????????????????????? | | ????????????# ##<$## #???????????????????????? | | ????????????# #### ## ##???????????????????????? | | ????????????## ## %#???????????????????????? | | ?????????????###### #? ##??????????????????????? | | ???????????????# #? %#??????????????????????? | | ???????????????# #### #??????????????????????? | | ???????????????# # #??????????????????????? | | ???????????????## ## #??????????????????????? | | ????????????##### # ##??????????????????????? | | ????????????# ##??????????????????????? | | ????????????# #??????????????????????? | | ????????????# #??????????????????????? | | ????????????# < % #??????????????????????? | | ????????????# ## ##??????????????????????? | | ????????????## ## ###? #???????????????????????? | | ?????????????#### #???? #??????????????????????? | | ????????????????## #???? ##??????????????????????? | | ?????????????????# #???? #???????????????????????? | +----------------------------------------------------+ Best States ------------- Heat Dissipation 39 Energy Generation 14 Energy Capacity 280 Matter Stores 300 Matter Capacity 300 Sight Range 16 Terrain Scan Range 16 Terrain Scan Density 10 Evasion (%) 55 Targeting Accuracy 5 Item Schematics ----------------- None Robot Schematics ------------------ None Fabricated ------------ Nothing Repaired ---------- Nothing Alien Tech Used ----------------- None Achievements -------------- None Challenges ------------ None RPGLIKE | -11 -10 -10 --------- Run | Yrd Mat Sub Levels Raised 1 | . . 1 XP Earned 5360 | 3000 1160 1200 XP Spent 3000 | 3000 . . Upgrades 6 | 6 . . Propulsion Slot 1 | 1 . . Utility Slot 1 | 1 . . Weapon Slot 1 | 1 . . Inventory Capacity 3 | 3 . . Protomatter Created 91 | . 91 . Integrity Restored 273 | . 273 . Core 273 | . 273 . Protomatter Decayed . | . . . Game ------ Seed ActiveMissileSource Manual? 0 Play Time 00:08:35 Cumulative 104.9 hours Start 2025.05.09 @ 19:30:03 End 2025.05.09 @ 19:37:52 Sessions 1 Manual Loads 0 Difficulty Rogue Special Mode Winter2019/RPGLIKE Game No. 129 Rogue 81 Adventurer 47 Explorer 1 Win Type - Total 10 Types 7/0/0/1/0/0/2/0/0/0 Lore% 59 Gallery% 56 Achievement% 63 Wizard Run 0 Options --------- Layout 0 ASCII 0 Keyboard 1 Movement Numpad Keybinds 0 Fullscreen 2 Font 18/SmallcapsGlow Map View 76x50 Zoom Use 0% Tactical HUD 1 Map Filters NONE Filters NONE Steam 1 RUN: 5b4da691-bde5-4959-9a53-10dc319ed535